[Event "Allsvenskan Div II 5 2022/2023: Molndals SK - Ostra Skaraborgsalliansen"]
[Site "Schackcentrum, Vegatan 20, Gothenburg, Sweden"]
[Date "2023.02.05"]
[Round "1.1"]
[White "Hakanson, Josef"]
[Black "Karlzen, Henrik"]
[Result "1/2-1/2"]
[TimeControl "90 minutes for 40 moves + 30 minutes for the rest of the game + 30 seconds per move from move one."]
[WhiteFideId "1717910"]
[BlackFideId "1709380"]
[WhiteElo "2141"]
[BlackElo "2173"]

1. e4 {[%emt 00:51:47]} e6 {[%emt 00:00:05]} 2. d4 {[%emt 00:00:03]} d5 {[%emt
00:00:05]} 3. Nd2 {[%emt 00:00:40]} Nf6 {[%emt 00:00:06]} 4. e5 {[%emt
00:00:11]} Nfd7 {[%clk 01:32:37]} {[%emt 00:00:06]} 5. Bd3 {[%clk 01:32:20]}
{[%emt 00:00:08]} c5 {[%clk 01:33:03]} {[%emt 00:00:03]} 6. c3 {[%clk
01:32:46]} {[%emt 00:00:04]} Nc6 {[%clk 01:33:30]} {[%emt 00:00:04]} 7. Ne2
{[%clk 01:33:14]} {[%emt 00:00:02]} cxd4 {[%clk 01:33:55]} {[%emt 00:00:05]} 8.
cxd4 {[%clk 01:33:25]} {[%emt 00:00:19]} f6 {[%clk 01:34:21]} {[%emt 00:00:04]}
9. exf6 {[%clk 01:32:50]} {[%emt 00:01:05]} Nxf6 {[%clk 01:34:45]} {[%emt
00:00:06]} 10. O-O {[%clk 01:32:49]} {[%emt 00:00:31]} Bd6 {[%clk 01:35:11]}
{[%emt 00:00:04]} 11. Nf3 {[%clk 01:33:15]} {[%emt 00:00:04]} O-O {[%clk
01:35:37]} {[%emt 00:00:04]} 12. Bf4 {[%clk 01:33:35]} {[%emt 00:00:09]} Bxf4
{[%clk 01:36:02]} {[%emt 00:00:06]} 13. Nxf4 {[%clk 01:34:03]} {[%emt
00:00:02]} Ne4 {[%clk 01:36:23]} {[%emt 00:00:08]} 14. Qc1 {[%clk 01:31:51]}
{[%emt 00:02:42]} Ng5 {[%clk 01:36:43]} {[%emt 00:00:10]} 15. Nxg5 {[%clk
01:32:06]} {[%emt 00:00:16]} Qxg5 {[%clk 01:37:08]} {[%emt 00:00:05]} 16. Ne2
{[%clk 01:31:33]} {[%emt 00:01:02]} Qxc1 {[%clk 01:37:12]} {[%emt 00:00:27]} 17.
Raxc1 {[%clk 01:30:19]} {[%emt 00:01:44]} a6 {[%clk 01:37:23]} {[%emt
00:00:18]} 18. a3 {[%clk 01:24:51]} {[%emt 00:05:58]} Bd7 {[%clk 01:36:47]}
{[%emt 00:01:07]} 19. Rc5 {[%clk 01:21:22]} {[%emt 00:03:59]} h6 {[%clk
00:55:54]} {[%emt 00:41:23]} 20. Rfc1 {[%clk 01:05:35]} {[%emt 00:16:13]} g5
{[%clk 00:52:44]} {[%emt 00:03:44]} 21. f3 {[%clk 00:52:42]} {[%emt 00:13:23]}
Kf7 {[%clk 00:48:57]} {[%emt 00:04:16]} 22. Kf2 {[%clk 00:50:33]} {[%emt
00:02:39]} Ke7 {[%clk 00:46:43]} {[%emt 00:02:45]} 23. Bc2 {[%clk 00:45:37]}
{[%emt 00:05:24]} Kd6 {[%clk 00:36:58]} {[%emt 00:10:17]} 24. Rc3 {[%clk
00:38:16]} {[%emt 00:07:50]} Rac8 {[%clk 00:27:50]} {[%emt 00:09:39]} 25. h4
{[%clk 00:28:33]} {[%emt 00:10:13]} Na7 {[%clk 00:21:10]} {[%emt 00:07:10]} 26.
hxg5 {[%clk 00:28:02]} {[%emt 00:01:01]} hxg5 {[%clk 00:19:44]} {[%emt
00:01:56]} 27. Ke3 {[%clk 00:20:17]} {[%emt 00:08:15]} Rxc3+ {[%clk 00:07:38]}
{[%emt 00:12:35]} 28. Nxc3 {[%clk 00:20:19]} {[%emt 00:00:27]} Rh8 {[%clk
00:07:30]} {[%emt 00:00:40]} 29. Bb3 {[%clk 00:18:00]} {[%emt 00:02:49]} Rh2
{[%clk 00:07:03]} {[%emt 00:00:57]} 30. Kf2 {[%clk 00:18:20]} {[%emt 00:00:10]}
Nc6 {[%clk 00:05:50]} {[%emt 00:01:42]} 31. Rd1 {[%clk 00:18:38]} {[%emt
00:00:12]} Rh4 {[%clk 00:05:03]} {[%emt 00:01:18]} 32. Ke3 {[%clk 00:18:45]}
{[%emt 00:00:22]} Be8 {[%clk 00:03:51]} {[%emt 00:01:42]} 33. Ba4 {[%clk
00:18:13]} {[%emt 00:01:03]} b5 {[%clk 00:03:47]} {[%emt 00:00:33]} 34. Bc2
{[%clk 00:18:17]} {[%emt 00:00:26]} b4 {[%clk 00:02:32]} {[%emt 00:01:46]} 35.
axb4 {[%clk 00:18:22]} {[%emt 00:00:25]} Nxb4 {[%clk 00:02:50]} {[%emt
00:00:12]} 36. Bd3 {[%emt 00:00:50]} e5 {[%emt 00:01:36]} 37. dxe5+ {[%emt
00:01:06]} Kxe5 {[%emt 00:00:02]} 38. Kf2 {[%emt 00:04:04]} Nxd3+ {[%emt
00:01:58]} 39. Rxd3 {[%emt 00:00:06]} d4 {[%emt 00:00:41]} 40. Ne4 {[%emt
00:02:48]} Bg6 {[%emt 00:00:35]} 41. Ra3 {[%emt 00:01:37]} Bxe4 {[%emt
00:02:29]} 42. fxe4 {[%emt 00:03:40]} Rf4+ {[%emt 00:20:09]} 43. Ke2 {[%emt
00:07:29]} Rxe4+ {[%emt 00:03:17]} 44. Kf3 {[%emt 00:02:13]} g4+ {[%emt
00:03:25]} 45. Kf2 {[%emt 00:00:13]} Kd5 {[%emt 00:00:51]} 46. Rxa6 {[%emt
00:05:12]} Kc4 {[%emt 00:01:59]} 47. Ra3 {[%emt 00:02:00]} Re8 {[%emt
00:01:07]} 48. Rg3 {[%emt 00:06:13]} d3 {[%emt 00:00:25]} 49. Rxg4+ {[%emt
00:00:59]} Kb3 {[%emt 00:00:02]} 50. Rd4 {[%emt 00:00:26]} Kc2 {[%emt
00:00:05]} 51. g4 {[%emt 00:00:44]} d2 {[%emt 00:00:13]} 52. Kf3 {[%emt
00:00:23]} Rf8+ {[%emt 00:01:30]} 53. Ke4 {[%emt 00:01:03]} Rb8 {[%emt
00:01:00]} 54. Kf5 {[%emt 00:05:33]} Rb5+ {[%emt 00:00:03]} 55. Kf6 {[%emt
00:00:29]} Rb4 {[%emt 00:00:36]} 56. Rxd2+ {[%emt 00:00:30]} Kxd2 {[%emt
00:00:05]} 57. g5 {[%emt 00:00:07]} Ke3 {[%emt 00:00:13]} 58. g6 {[%emt
00:00:09]} Kf4 {[%emt 00:00:08]} 59. g7 {[%emt 00:00:10]} Rb6+ {[%emt
00:00:14]} 60. Kf7 {[%emt 00:00:03]} Rb7+ {[%emt 00:00:10]} 61. Kg6 {[%emt
00:00:45]} Rxb2 {[%emt 00:00:29]} 62. g8=Q {[%emt 00:00:52]} Rg2+ {[%emt
00:00:04]} 63. Kh7 {[%emt 00:00:11]} Rxg8 {[%emt 00:00:05]} 64. Kxg8 {[%emt
00:00:04]} 1/2-1/2

[Event "Allsvenskan Div II 5 2022/2023: Molndals SK - Ostra Skaraborgsalliansen"]
[Site "Schackcentrum, Vegatan 20, Gothenburg, Sweden"]
[Date "2023.02.05"]
[Round "1.2"]
[White "Nilsson, Jorgen"]
[Black "Gustavsson, Ingemar"]
[Result "0-1"]
[TimeControl "90 minutes for 40 moves + 30 minutes for the rest of the game + 30 seconds per move from move one."]
[WhiteFideId "1723812"]
[BlackFideId "1723340"]
[WhiteElo "2082"]
[BlackElo "1902"]

1. e4 {[%clk 01:30:53]} {[%emt 00:00:07]} e5 {[%clk 01:30:56]} {[%emt
00:00:04]} 2. Nf3 {[%clk 01:31:14]} {[%emt 00:00:08]} Nc6 {[%clk 01:31:21]}
{[%emt 00:00:06]} 3. Bb5 {[%clk 01:31:38]} {[%emt 00:00:07]} a6 {[%clk
01:31:47]} {[%emt 00:00:03]} 4. Ba4 {[%clk 01:32:01]} {[%emt 00:00:07]} Nf6
{[%clk 01:32:12]} {[%emt 00:00:05]} 5. O-O {[%clk 01:32:25]} {[%emt 00:00:06]}
Nxe4 {[%clk 01:32:37]} {[%emt 00:00:05]} 6. d4 {[%clk 01:32:43]} {[%emt
00:00:13]} b5 {[%clk 01:33:01]} {[%emt 00:00:05]} 7. Bb3 {[%clk 01:33:06]}
{[%emt 00:00:07]} d5 {[%clk 01:33:27]} {[%emt 00:00:05]} 8. dxe5 {[%clk
01:33:15]} {[%emt 00:00:20]} Be6 {[%clk 01:33:51]} {[%emt 00:00:06]} 9. c3
{[%clk 01:31:31]} {[%emt 00:02:14]} Bc5 {[%clk 01:33:57]} {[%emt 00:00:24]} 10.
Nbd2 {[%clk 01:31:20]} {[%emt 00:00:42]} O-O {[%clk 01:33:58]} {[%emt
00:00:28]} 11. Bc2 {[%clk 01:28:18]} {[%emt 00:03:32]} Nxf2 {[%clk 01:30:35]}
{[%emt 00:03:53]} 12. Rxf2 {[%clk 01:27:09]} {[%emt 00:01:40]} f6 {[%clk
01:29:39]} {[%emt 00:01:25]} 13. Nb3 {[%clk 01:20:58]} {[%emt 00:06:41]} Bxf2+
{[%clk 01:29:48]} {[%emt 00:00:21]} 14. Kxf2 {[%clk 01:21:19]} {[%emt
00:00:09]} fxe5 {[%clk 01:28:12]} {[%emt 00:02:06]} 15. Nc5 {[%clk 01:05:39]}
{[%emt 00:16:10]} Bg4 {[%clk 01:23:48]} {[%emt 00:04:54]} 16. Bb3 {[%clk
01:05:13]} {[%emt 00:00:56]} Ne7 {[%clk 01:16:18]} {[%emt 00:07:58]} 17. Bg5
{[%clk 00:47:23]} {[%emt 00:18:22]} c6 {[%clk 01:15:01]} {[%emt 00:01:47]} 18.
Qe2 {[%clk 00:46:17]} {[%emt 00:01:37]} h6 {[%clk 01:05:26]} {[%emt 00:10:05]}
19. Bh4 {[%clk 00:39:53]} {[%emt 00:06:53]} g5 {[%clk 01:03:55]} {[%emt
00:02:00]} 20. h3 {[%clk 00:36:56]} {[%emt 00:03:28]} Bxf3 {[%clk 01:03:19]}
{[%emt 00:01:06]} 21. gxf3 {[%clk 00:37:16]} {[%emt 00:00:10]} Qb6 {[%clk
01:02:07]} {[%emt 00:01:42]} 22. Kg2 {[%clk 00:37:18]} {[%emt 00:00:28]} Qxc5
{[%clk 00:59:49]} {[%emt 00:02:48]} 23. Bg3 {[%clk 00:35:36]} {[%emt 00:02:12]}
Rae8 {[%clk 00:56:46]} {[%emt 00:03:32]} 24. h4 {[%clk 00:33:51]} {[%emt
00:02:15]} Nf5 {[%clk 00:53:41]} {[%emt 00:03:36]} 25. Bf2 {[%clk 00:33:49]}
{[%emt 00:00:32]} Nxh4+ {[%clk 00:53:03]} {[%emt 00:01:07]} 26. Bxh4 {[%clk
00:32:22]} {[%emt 00:01:57]} gxh4 {[%clk 00:53:26]} {[%emt 00:00:07]} 27. Kh2
{[%clk 00:28:31]} {[%emt 00:04:22]} e4 {[%clk 00:51:48]} {[%emt 00:02:07]} 28.
Rg1+ {[%clk 00:24:39]} {[%emt 00:04:23]} Kh8 {[%clk 00:51:54]} {[%emt
00:00:22]} 29. Qd2 {[%clk 00:25:03]} {[%emt 00:00:08]} Qd6+ {[%clk 00:50:39]}
{[%emt 00:01:45]} 0-1

[Event "Allsvenskan Div II 5 2022/2023: Molndals SK - Ostra Skaraborgsalliansen"]
[Site "Schackcentrum, Vegatan 20, Gothenburg, Sweden"]
[Date "2023.02.05"]
[Round "1.3"]
[White "Wiman, Kenneth"]
[Black "Teiffel, Henrik"]
[Result "1-0"]
[TimeControl "90 minutes for 40 moves + 30 minutes for the rest of the game + 30 seconds per move from move one."]
[WhiteFideId "1707442"]
[BlackFideId "1723820"]
[WhiteElo "1879"]
[BlackElo "1886"]

1. d4 {[%clk 01:30:42]} {[%emt 00:00:17]} f5 {[%clk 01:30:29]} {[%emt
00:00:32]} 2. Nc3 {[%clk 01:30:40]} {[%emt 00:00:32]} Nf6 {[%clk 01:30:55]}
{[%emt 00:00:04]} 3. e4 {[%clk 01:30:16]} {[%emt 00:00:53]} fxe4 {[%clk
01:30:30]} {[%emt 00:00:56]} 4. Bg5 {[%clk 01:30:28]} {[%emt 00:00:17]} g6
{[%clk 01:26:28]} {[%emt 00:04:31]} 5. Bxf6 {[%clk 01:29:36]} {[%emt 00:01:24]}
exf6 {[%clk 01:26:56]} {[%emt 00:00:02]} 6. Nxe4 {[%clk 01:29:50]} {[%emt
00:00:16]} Bg7 {[%clk 01:27:11]} {[%emt 00:00:14]} 7. Nf3 {[%clk 01:28:01]}
{[%emt 00:02:19]} d5 {[%clk 01:24:35]} {[%emt 00:03:07]} 8. Ned2 {[%clk
01:24:03]} {[%emt 00:04:27]} O-O {[%clk 01:24:17]} {[%emt 00:00:49]} 9. Be2
{[%clk 01:23:50]} {[%emt 00:00:42]} Re8 {[%clk 01:19:37]} {[%emt 00:05:11]} 10.
O-O {[%clk 01:22:37]} {[%emt 00:01:43]} Be6 {[%clk 01:12:10]} {[%emt 00:07:56]}
11. Bd3 {[%clk 01:19:38]} {[%emt 00:03:29]} Qd6 {[%clk 01:06:12]} {[%emt
00:06:27]} 12. c3 {[%clk 01:16:26]} {[%emt 00:03:44]} Nd7 {[%clk 01:05:04]}
{[%emt 00:01:38]} 13. Qc2 {[%clk 01:09:35]} {[%emt 00:07:21]} Bf7 {[%clk
01:02:53]} {[%emt 00:02:41]} 14. Rfe1 {[%clk 01:08:29]} {[%emt 00:01:36]} a6
{[%clk 00:58:30]} {[%emt 00:04:54]} 15. b4 {[%clk 00:57:38]} {[%emt 00:11:21]}
c6 {[%clk 00:57:38]} {[%emt 00:01:21]} 16. a4 {[%clk 00:54:56]} {[%emt
00:03:13]} Rxe1+ {[%clk 00:52:35]} {[%emt 00:05:33]} 17. Rxe1 {[%clk 00:54:26]}
{[%emt 00:00:58]} b5 {[%clk 00:51:21]} {[%emt 00:01:45]} 18. g3 {[%clk
00:50:32]} {[%emt 00:04:24]} Re8 {[%clk 00:48:40]} {[%emt 00:03:11]} 19. Rxe8+
{[%clk 00:49:33]} {[%emt 00:01:30]} Bxe8 {[%clk 00:48:53]} {[%emt 00:00:16]} 20.
Nb3 {[%clk 00:49:17]} {[%emt 00:00:46]} bxa4 {[%clk 00:44:13]} {[%emt
00:05:11]} 21. Nc5 {[%clk 00:49:32]} {[%emt 00:00:14]} Nxc5 {[%clk 00:42:57]}
{[%emt 00:01:24]} 22. bxc5 {[%clk 00:50:01]} a5 {[%clk 00:41:44]} {[%emt
00:02:06]} 1-0

[Event "Allsvenskan Div II 5 2022/2023: Molndals SK - Ostra Skaraborgsalliansen"]
[Site "Schackcentrum, Vegatan 20, Gothenburg, Sweden"]
[Date "2023.02.05"]
[Round "1.4"]
[White "Johansson, Mats"]
[Black "Sundqvist, Jan-Ove"]
[Result "1-0"]
[TimeControl "90 minutes for 40 moves + 30 minutes for the rest of the game + 30 seconds per move from move one."]
[WhiteFideId "1722913"]
[BlackFideId "1720414"]
[WhiteElo "1785"]
[BlackElo "1846"]

1. d4 {[%clk 01:30:57]} {[%emt 00:00:03]} f5 {[%clk 01:30:31]} {[%emt
00:00:29]} 2. Nc3 {[%clk 01:31:03]} {[%emt 00:00:23]} d5 {[%clk 01:29:44]}
{[%emt 00:01:18]} 3. Bg5 {[%clk 01:28:08]} {[%emt 00:03:25]} g6 {[%clk
01:27:29]} {[%emt 00:02:45]} 4. h4 {[%clk 01:26:16]} {[%emt 00:02:22]} Bg7
{[%clk 01:26:56]} {[%emt 00:01:02]} 5. e3 {[%clk 01:22:29]} {[%emt 00:04:17]}
c6 {[%clk 01:24:05]} {[%emt 00:03:21]} 6. Be2 {[%clk 01:18:50]} {[%emt
00:04:09]} Bf6 {[%clk 01:08:04]} {[%emt 00:16:31]} 7. Bxf6 {[%clk 01:12:44]}
{[%emt 00:06:35]} Nxf6 {[%clk 01:08:02]} {[%emt 00:00:33]} 8. h5 {[%clk
01:11:29]} {[%emt 00:01:46]} Rg8 {[%clk 01:05:20]} {[%emt 00:03:12]} 9. hxg6
{[%clk 01:06:18]} {[%emt 00:05:42]} hxg6 {[%clk 01:05:23]} {[%emt 00:00:26]} 10.
Rh6 {[%clk 00:56:57]} {[%emt 00:09:50]} Be6 {[%clk 01:04:01]} {[%emt 00:01:52]}
11. Nh3 {[%clk 00:54:40]} {[%emt 00:02:47]} Nbd7 {[%clk 00:52:37]} {[%emt
00:11:55]} 12. Ng5 {[%clk 00:51:49]} {[%emt 00:03:21]} Nf8 {[%clk 00:51:22]}
{[%emt 00:01:44]} 13. Nxe6 {[%clk 00:38:50]} {[%emt 00:13:29]} Nxe6 {[%clk
00:51:46]} 14. g4 {[%clk 00:38:17]} {[%emt 00:01:09]} Kd7 {[%clk 00:46:34]} 15.
Kd2 {[%clk 00:31:31]} {[%emt 00:12:59]} Qf8 {[%clk 00:39:36]} 16. Rh2 {[%clk
00:30:41]} {[%emt 00:08:47]} Rh8 {[%clk 00:39:12]} 17. Rg2 {[%clk 00:27:45]}
{[%emt 00:04:20]} Qh6 {[%clk 00:32:46]} 18. Qg1 {[%clk 00:26:59]} {[%emt
00:08:12]} fxg4 {[%clk 00:32:13]} 19. Bxg4 {[%clk 00:26:44]} {[%emt 00:01:48]}
Nxg4 {[%clk 00:31:07]} {[%emt 00:01:36]} 20. Rxg4 {[%clk 00:26:54]} {[%emt
00:00:21]} Raf8 {[%clk 00:30:32]} {[%emt 00:01:05]} 21. Rf1 {[%clk 00:24:31]}
{[%emt 00:02:52]} Rf6 {[%clk 00:29:45]} {[%emt 00:01:17]} 22. Ne2 {[%clk
00:22:48]} {[%emt 00:02:13]} b6 {[%clk 00:27:13]} {[%emt 00:03:02]} 23. b4
{[%clk 00:17:30]} {[%emt 00:05:49]} Qh2 {[%clk 00:21:41]} {[%emt 00:06:02]} 24.
Ke1 {[%clk 00:14:47]} {[%emt 00:03:12]} Qd6 {[%clk 00:19:54]} {[%emt 00:02:17]}
25. a3 {[%clk 00:12:10]} {[%emt 00:03:08]} a5 {[%clk 00:18:07]} {[%emt
00:02:16]} 26. c3 {[%clk 00:11:36]} {[%emt 00:01:04]} axb4 {[%clk 00:17:57]}
{[%emt 00:00:40]} 27. axb4 {[%clk 00:10:54]} {[%emt 00:01:13]} Ra8 {[%clk
00:17:41]} {[%emt 00:00:45]} 28. f3 {[%clk 00:09:54]} {[%emt 00:01:30]} Raf8
{[%clk 00:16:47]} {[%emt 00:01:25]} 29. Qg3 {[%clk 00:05:13]} {[%emt 00:05:11]}
Ng7 {[%clk 00:12:01]} {[%emt 00:05:15]} 30. Qxd6+ {[%clk 00:04:23]} {[%emt
00:01:21]} Kxd6 {[%clk 00:12:02]} {[%emt 00:00:29]} 31. Nf4 {[%clk 00:04:28]}
{[%emt 00:00:24]} Nf5 {[%clk 00:11:34]} {[%emt 00:00:58]} 32. e4 {[%clk
00:02:37]} {[%emt 00:02:21]} dxe4 {[%clk 00:07:51]} {[%emt 00:04:14]} 33. fxe4
{[%clk 00:02:56]} {[%emt 00:00:11]} Ne3 {[%clk 00:08:05]} {[%emt 00:00:15]} 34.
e5+ {[%clk 00:02:20]} {[%emt 00:01:06]} Kd7 {[%clk 00:08:25]} {[%emt 00:00:11]}
35. exf6 {[%clk 00:00:52]} {[%emt 00:01:57]} Nxg4 {[%clk 00:07:47]} {[%emt
00:01:09]} 36. fxe7 {[%clk 00:00:47]} {[%emt 00:00:35]} Rf6 {[%clk 00:07:17]}
{[%emt 00:00:59]} 37. Nd3 {[%clk 00:00:42]} {[%emt 00:00:35]} Re6+ {[%clk
00:07:22]} {[%emt 00:00:25]} 38. Kd2 {[%clk 00:00:55]} {[%emt 00:00:17]} Rxe7
{[%clk 00:06:40]} {[%emt 00:01:13]} 39. Rf4 {[%clk 00:00:52]} {[%emt 00:00:32]}
Nh6 {[%clk 00:05:10]} {[%emt 00:02:00]} 40. Ne5+ {[%clk 00:00:47]} {[%emt
00:00:35]} Ke6 {[%clk 00:04:31]} 41. Nxg6 {[%clk 00:24:04]} {[%emt 00:08:22]}
Rc7 {[%clk 00:32:32]} 42. Kd3 {[%clk 00:19:19]} {[%emt 00:07:42]} c5 {[%clk
00:30:24]} 43. Re4+ {[%clk 00:16:43]} {[%emt 00:05:45]} Kd6 {[%clk 00:30:17]}
{[%emt 00:00:38]} 44. Ne5 {[%clk 00:14:01]} {[%emt 00:03:12]} cxb4 {[%clk
00:27:59]} {[%emt 00:02:48]} 45. Nc4+ {[%clk 00:13:16]} {[%emt 00:01:14]} Kd7
{[%clk 00:27:35]} {[%emt 00:00:55]} 46. Nxb6+ {[%clk 00:12:54]} {[%emt
00:00:51]} Kd8 {[%clk 00:27:44]} {[%emt 00:00:20]} 47. Nd5 {[%clk 00:12:03]}
{[%emt 00:01:22]} Rg7 {[%clk 00:22:59]} {[%emt 00:05:15]} 48. Nxb4 {[%clk
00:12:17]} {[%emt 00:00:16]} Nf5 {[%clk 00:23:15]} {[%emt 00:00:14]} 49. Re5
{[%clk 00:11:57]} {[%emt 00:00:50]} Rg3+ {[%clk 00:23:26]} {[%emt 00:00:20]} 50.
Ke4 {[%clk 00:10:37]} {[%emt 00:01:50]} Nd6+ {[%clk 00:23:39]} {[%emt
00:00:17]} 51. Kd5 {[%clk 00:10:38]} {[%emt 00:00:28]} 1-0

[Event "Allsvenskan Div II 5 2022/2023: Molndals SK - Ostra Skaraborgsalliansen"]
[Site "Schackcentrum, Vegatan 20, Gothenburg, Sweden"]
[Date "2023.02.05"]
[Round "1.5"]
[White "Jamtbo, Patrik"]
[Black "Thornberg, Bo"]
[Result "1-0"]
[TimeControl "90 minutes for 40 moves + 30 minutes for the rest of the game + 30 seconds per move from move one."]
[WhiteFideId "1718339"]
[BlackFideId "1724665"]
[WhiteElo "1694"]
[BlackElo "1749"]

1. Nf3 {[%clk 01:30:55]} {[%emt 00:00:04]} f5 {[%clk 01:30:33]} {[%emt
00:00:28]} 2. c4 {[%clk 01:30:37]} {[%emt 00:00:48]} Nf6 {[%clk 01:30:51]}
{[%emt 00:00:12]} 3. Nc3 {[%clk 01:30:47]} {[%emt 00:00:20]} e6 {[%clk
01:30:53]} {[%emt 00:00:28]} 4. a3 {[%clk 01:30:43]} {[%emt 00:00:34]} c5
{[%clk 01:28:19]} {[%emt 00:03:03]} 5. d3 {[%clk 01:30:03]} {[%emt 00:01:10]}
b6 {[%clk 01:28:11]} {[%emt 00:00:39]} 6. g3 {[%clk 01:30:03]} {[%emt
00:00:31]} Bb7 {[%clk 01:28:23]} {[%emt 00:00:17]} 7. Bg2 {[%clk 01:30:21]}
{[%emt 00:00:12]} Nc6 {[%clk 01:27:53]} {[%emt 00:01:00]} 8. O-O {[%clk
01:28:55]} {[%emt 00:01:56]} Be7 {[%clk 01:27:11]} {[%emt 00:01:12]} 9. Re1
{[%clk 01:26:35]} {[%emt 00:02:50]} O-O {[%clk 01:24:23]} {[%emt 00:03:17]} 10.
b3 {[%clk 01:22:16]} {[%emt 00:04:49]} h6 {[%clk 01:12:09]} {[%emt 00:12:46]}
11. h4 {[%clk 01:21:54]} {[%emt 00:00:51]} d5 {[%clk 01:06:46]} {[%emt
00:05:52]} 12. cxd5 {[%clk 01:21:30]} {[%emt 00:00:54]} exd5 {[%clk 01:07:03]}
{[%emt 00:00:13]} 13. d4 {[%clk 01:17:45]} {[%emt 00:04:16]} Ne4 {[%clk
00:57:16]} {[%emt 00:10:17]} 14. Bb2 {[%clk 01:15:52]} {[%emt 00:02:22]} Bf6
{[%clk 00:52:11]} {[%emt 00:05:35]} 15. e3 {[%clk 01:13:26]} {[%emt 00:02:56]}
Rc8 {[%clk 00:46:12]} {[%emt 00:06:29]} 16. Rc1 {[%clk 01:13:10]} {[%emt
00:00:47]} Ne7 {[%clk 00:43:45]} {[%emt 00:02:57]} 17. dxc5 {[%clk 01:08:35]}
{[%emt 00:05:05]} Bxc3 {[%clk 00:33:06]} {[%emt 00:11:09]} 18. Bxc3 {[%clk
01:08:08]} {[%emt 00:00:56]} bxc5 {[%clk 00:33:16]} {[%emt 00:00:20]} 19. Bb2
{[%clk 01:07:36]} {[%emt 00:01:02]} Qb6 {[%clk 00:32:39]} {[%emt 00:01:06]} 20.
Ne5 {[%clk 01:04:36]} {[%emt 00:03:32]} Rfd8 {[%clk 00:27:11]} {[%emt
00:05:57]} 21. b4 {[%clk 00:54:10]} {[%emt 00:10:57]} c4 {[%clk 00:23:20]}
{[%emt 00:04:21]} 22. Bd4 {[%clk 00:53:53]} {[%emt 00:00:46]} Qa6 {[%clk
00:22:40]} {[%emt 00:01:10]} 23. a4 {[%clk 00:52:17]} {[%emt 00:02:07]} Qd6
{[%clk 00:22:40]} {[%emt 00:00:29]} 24. b5 {[%clk 00:51:18]} {[%emt 00:01:29]}
a6 {[%clk 00:22:32]} {[%emt 00:00:38]} 25. Re2 {[%clk 00:47:00]} {[%emt
00:04:49]} axb5 {[%clk 00:21:07]} {[%emt 00:01:55]} 26. axb5 {[%clk 00:47:21]}
{[%emt 00:00:09]} Ra8 {[%clk 00:20:18]} {[%emt 00:01:19]} 27. Qe1 {[%clk
00:46:39]} {[%emt 00:01:12]} Ra3 {[%clk 00:15:56]} {[%emt 00:04:51]} 28. f3
{[%clk 00:44:47]} {[%emt 00:02:22]} Nf6 {[%clk 00:15:41]} {[%emt 00:00:46]} 29.
Rb1 {[%clk 00:42:33]} {[%emt 00:02:44]} Rda8 {[%emt 00:01:50]} 30. Qb4 {[%clk
00:37:52]} {[%emt 00:05:08]} Qe6 {[%clk 00:10:29]} {[%emt 00:04:24]} 31. Kf2
{[%clk 00:33:29]} {[%emt 00:04:53]} R3a4 {[%clk 00:09:00]} {[%emt 00:01:59]} 32.
Qd2 {[%clk 00:28:50]} {[%emt 00:05:09]} Nd7 {[%clk 00:08:28]} {[%emt 00:01:02]}
33. Nxd7 {[%clk 00:27:25]} {[%emt 00:01:56]} Qxd7 {[%clk 00:08:56]} {[%emt
00:00:02]} 34. Bc3 {[%clk 00:23:49]} {[%emt 00:04:06]} Kh7 {[%clk 00:06:30]}
{[%emt 00:02:56]} 35. Qd4 {[%clk 00:23:17]} {[%emt 00:01:02]} Ng8 {[%clk
00:05:07]} {[%emt 00:01:53]} 36. e4 {[%clk 00:22:00]} {[%emt 00:01:46]} fxe4
{[%clk 00:04:54]} {[%emt 00:00:43]} 37. fxe4 {[%clk 00:21:20]} {[%emt
00:01:10]} Nf6 {[%clk 00:05:21]} {[%emt 00:00:04]} 38. Kg1 {[%clk 00:19:23]}
{[%emt 00:02:27]} Qg4 {[%clk 00:03:56]} {[%emt 00:01:55]} 39. Rbe1 {[%clk
00:18:35]} {[%emt 00:01:18]} dxe4 {[%clk 00:02:11]} {[%emt 00:02:15]} 40. Re3
{[%clk 00:17:35]} {[%emt 00:01:29]} Bd5 {[%clk 00:00:42]} {[%emt 00:02:00]} 41.
b6 {[%clk 00:10:44]} {[%emt 00:07:21]} Rb8 {[%clk 00:29:11]} {[%emt 00:02:00]}
42. Qc5 {[%clk 00:40:56]} {[%emt 00:00:18]} Qf5 {[%clk 00:24:08]} {[%emt
00:05:33]} 43. Bxf6 {[%clk 00:39:28]} {[%emt 00:01:59]} Ra2 {[%clk 00:22:08]}
{[%emt 00:02:29]} 44. Rf1 {[%clk 00:39:27]} {[%emt 00:00:32]} 1-0